[Event "Late-Titled-Tuesday-Blitz-January-16-2024"]
[Site "Chess.com"]
[Date "2024.01.16"]
[Round "4"]
[White "shrek4life02"]
[Black "LUISMIGUELOV"]
[Result "1-0"]
[WhiteElo "2641"]
[BlackElo "2177"]
[TimeControl "180+1"]
[EndTime "14:36:10 PST"]
[Termination "shrek4life02 won by resignation"]

1. d4 {[%clk 0:03:00.9]} 1... d5 {[%clk 0:02:42.8]} 2. c4 {[%clk 0:03:00.7]}
2... c6 {[%clk 0:02:41.8]} 3. Nf3 {[%clk 0:03:00.1]} 3... Nf6 {[%clk 0:02:37.6]}
4. Nc3 {[%clk 0:02:59.7]} 4... dxc4 {[%clk 0:02:37.3]} 5. e3 {[%clk 0:02:59]}
5... Bg4 {[%clk 0:02:33.5]} 6. Bxc4 {[%clk 0:02:58.6]} 6... e6 {[%clk
0:02:33.4]} 7. h3 {[%clk 0:02:58.4]} 7... Bxf3 {[%clk 0:02:29.9]} 8. Qxf3 {[%clk
0:02:59.3]} 8... Nbd7 {[%clk 0:02:28.7]} 9. O-O {[%clk 0:02:59.1]} 9... Bd6
{[%clk 0:02:21.7]} 10. e4 {[%clk 0:02:58]} 10... e5 {[%clk 0:02:21.6]} 11. d5
{[%clk 0:02:57.2]} 11... cxd5 {[%clk 0:02:16.9]} 12. Nxd5 {[%clk 0:02:58.1]}
12... Nxd5 {[%clk 0:02:16]} 13. Bxd5 {[%clk 0:02:59]} 13... O-O {[%clk
0:02:14.4]} 14. Be3 {[%clk 0:02:57.2]} 14... Bc5 {[%clk 0:01:52.6]} 15. Rfd1
{[%clk 0:02:52.4]} 15... Bxe3 {[%clk 0:01:50.9]} 16. Qxe3 {[%clk 0:02:53.3]}
16... Qb6 {[%clk 0:01:33.9]} 17. Qxb6 {[%clk 0:02:52.2]} 17... Nxb6 {[%clk
0:01:32.4]} 18. Bxb7 {[%clk 0:02:52.5]} 18... Rab8 {[%clk 0:01:30.9]} 19. Ba6
{[%clk 0:02:52.9]} 19... Na4 {[%clk 0:01:25.7]} 20. b3 {[%clk 0:02:49.7]} 20...
Nc5 {[%clk 0:01:26.1]} 21. Bd3 {[%clk 0:02:46.4]} 21... Rb4 {[%clk 0:01:19.4]}
22. f3 {[%clk 0:02:45.5]} 22... Rd8 {[%clk 0:01:15.2]} 23. Bc4 {[%clk 0:02:45]}
23... Rd4 {[%clk 0:01:09.2]} 24. Rxd4 {[%clk 0:02:43.3]} 24... exd4 {[%clk
0:01:07.6]} 25. Rd1 {[%clk 0:02:43.9]} 25... a5 {[%clk 0:00:57.6]} 26. Rxd4
{[%clk 0:02:40]} 26... Kf8 {[%clk 0:00:58]} 27. Rd5 {[%clk 0:02:36.8]} 27... Ne6
{[%clk 0:00:54.9]} 28. Rxa5 {[%clk 0:02:25.9]} 28... Nd4 {[%clk 0:00:48.3]} 29.
Ra8+ {[%clk 0:02:23.7]} 29... Ke7 {[%clk 0:00:47.6]} 30. Ra7+ {[%clk 0:02:24.4]}
30... Kf6 {[%clk 0:00:41.9]} 31. Rxf7+ {[%clk 0:02:24.4]} 31... Ke5 {[%clk
0:00:41.8]} 32. Rxg7 {[%clk 0:02:23.4]} 32... h5 {[%clk 0:00:38.6]} 33. Rh7
{[%clk 0:02:21.8]} 33... Kf4 {[%clk 0:00:36.2]} 34. Rxh5 {[%clk 0:02:21.6]}
34... Nxf3+ {[%clk 0:00:31.3]} 35. gxf3 {[%clk 0:02:21.4]} 35... Kxf3 {[%clk
0:00:31.8]} 36. e5 {[%clk 0:02:20.6]} 36... Rb8 {[%clk 0:00:26.6]} 37. Rf5+
{[%clk 0:02:20.5]} 37... Ke4 {[%clk 0:00:25.2]} 38. Rf2 {[%clk 0:02:20.8]} 38...
Kxe5 {[%clk 0:00:24.3]} 39. Kh2 {[%clk 0:02:21.3]} 39... Kd4 {[%clk 0:00:22.4]}
40. h4 {[%clk 0:02:21.6]} 40... Ke3 {[%clk 0:00:22]} 41. Rf7 {[%clk 0:02:21.3]}
41... Rb6 {[%clk 0:00:20]} 42. Kh3 {[%clk 0:02:21.5]} 42... Rg6 {[%clk
0:00:18.2]} 43. h5 {[%clk 0:02:21.7]} 43... Rg1 {[%clk 0:00:15.3]} 44. Kh4
{[%clk 0:02:22.2]} 44... Rh1+ {[%clk 0:00:14.4]} 45. Kg5 {[%clk 0:02:22.6]}
45... Rg1+ {[%clk 0:00:14.7]} 46. Kh6 {[%clk 0:02:22.7]} 46... Ke4 {[%clk
0:00:13.3]} 47. Kh7 {[%clk 0:02:22.7]} 47... Ke5 {[%clk 0:00:13.4]} 48. h6
{[%clk 0:02:23]} 48... Kd6 {[%clk 0:00:09.2]} 49. Kh8 {[%clk 0:02:22.9]} 49...
Ke5 {[%clk 0:00:06.2]} 50. h7 {[%clk 0:02:23.4]} 50... Kd6 {[%clk 0:00:05.8]}
51. a4 {[%clk 0:02:23.9]} 1-0

[Event "Late-Titled-Tuesday-Blitz-January-16-2024"]
[Site "Chess.com"]
[Date "2024.01.16"]
[Round "4"]
[White "GMJustin"]
[Black "OYAcosta"]
[Result "1-0"]
[WhiteElo "2338"]
[BlackElo "2123"]
[TimeControl "180+1"]
[EndTime "14:36:11 PST"]
[Termination "GMJustin won by resignation"]

1. e4 {[%clk 0:02:42.4]} 1... c6 {[%clk 0:02:56.4]} 2. d4 {[%clk 0:02:41.1]}
2... d5 {[%clk 0:02:56]} 3. Nc3 {[%clk 0:02:40.2]} 3... dxe4 {[%clk 0:02:55.4]}
4. Nxe4 {[%clk 0:02:40.4]} 4... Nd7 {[%clk 0:02:56.1]} 5. Nf3 {[%clk 0:02:23.6]}
5... Ngf6 {[%clk 0:02:53.2]} 6. Nxf6+ {[%clk 0:02:17.7]} 6... Nxf6 {[%clk
0:02:52.8]} 7. Be2 {[%clk 0:02:18.1]} 7... Bg4 {[%clk 0:02:46.9]} 8. O-O {[%clk
0:02:12.9]} 8... e6 {[%clk 0:02:45.4]} 9. h3 {[%clk 0:02:12.1]} 9... Bh5 {[%clk
0:02:45.5]} 10. g4 {[%clk 0:02:02.4]} 10... Bg6 {[%clk 0:02:43.4]} 11. Ne5
{[%clk 0:02:02.5]} 11... Bd6 {[%clk 0:02:41.5]} 12. h4 {[%clk 0:01:55.6]} 12...
h6 {[%clk 0:01:18.4]} 13. Nxg6 {[%clk 0:01:53.1]} 13... fxg6 {[%clk 0:01:17.9]}
14. Qd3 {[%clk 0:01:42.8]} 14... O-O {[%clk 0:01:12.4]} 15. Qxg6 {[%clk
0:01:40.2]} 15... Nd5 {[%clk 0:01:13]} 16. Bxh6 {[%clk 0:01:17.7]} 16... Qe7
{[%clk 0:01:06.5]} 17. Bd3 {[%clk 0:01:10.2]} 17... Rf6 {[%clk 0:01:06]} 18.
Qh7+ {[%clk 0:01:08.5]} 18... Kf7 {[%clk 0:01:04]} 19. Qxg7+ {[%clk 0:00:54]}
19... Ke8 {[%clk 0:01:04.1]} 20. g5 {[%clk 0:00:23.1]} 20... Rf7 {[%clk
0:01:00]} 21. Bg6 {[%clk 0:00:20.7]} 1-0

[Event "Late-Titled-Tuesday-Blitz-January-16-2024"]
[Site "Chess.com"]
[Date "2024.01.16"]
[Round "4"]
[White "enestnrvrd"]
[Black "The_Straightforward_Rook"]
[Result "1-0"]
[WhiteElo "2681"]
[BlackElo "2472"]
[TimeControl "180+1"]
[EndTime "14:36:20 PST"]
[Termination "enestnrvrd won by resignation"]

1. Nf3 {[%clk 0:03:00.9]} 1... d5 {[%clk 0:02:36.3]} 2. c4 {[%clk 0:03:00.1]}
2... c6 {[%clk 0:02:36.1]} 3. d4 {[%clk 0:02:59.5]} 3... Nf6 {[%clk 0:02:36.2]}
4. Nc3 {[%clk 0:02:59.2]} 4... e6 {[%clk 0:02:35.7]} 5. Bg5 {[%clk 0:02:58.4]}
5... h6 {[%clk 0:02:36.1]} 6. Bxf6 {[%clk 0:02:55.5]} 6... Qxf6 {[%clk 0:02:37]}
7. g3 {[%clk 0:02:54.9]} 7... Nd7 {[%clk 0:02:35.9]} 8. Bg2 {[%clk 0:02:55.3]}
8... dxc4 {[%clk 0:02:35.9]} 9. O-O {[%clk 0:02:55.4]} 9... Bb4 {[%clk
0:02:33.4]} 10. e3 {[%clk 0:02:46.3]} 10... O-O {[%clk 0:02:32.1]} 11. Nd2
{[%clk 0:02:45.7]} 11... Nb6 {[%clk 0:02:29.3]} 12. Qe2 {[%clk 0:02:38.7]} 12...
e5 {[%clk 0:02:27.4]} 13. Nde4 {[%clk 0:02:24.5]} 13... Qe7 {[%clk 0:02:23.8]}
14. Rad1 {[%clk 0:01:54]} 14... Bf5 {[%clk 0:02:17.2]} 15. d5 {[%clk 0:01:50.9]}
15... Bxc3 {[%clk 0:02:08.6]} 16. d6 {[%clk 0:01:47]} 16... Qd8 {[%clk
0:01:54.9]} 17. bxc3 {[%clk 0:01:43.9]} 17... Bxe4 {[%clk 0:01:44.4]} 18. Bxe4
{[%clk 0:01:42.5]} 18... f5 {[%clk 0:01:44.3]} 19. Bc2 {[%clk 0:01:35.7]} 19...
Rf6 {[%clk 0:01:39.2]} 20. a4 {[%clk 0:01:27.9]} 20... e4 {[%clk 0:01:28.2]} 21.
a5 {[%clk 0:01:19.8]} 21... Nd5 {[%clk 0:01:28.6]} 22. Qxc4 {[%clk 0:01:16.5]}
22... Rxd6 {[%clk 0:01:29.2]} 23. a6 {[%clk 0:00:59.7]} 23... b6 {[%clk
0:01:22.4]} 24. Qd4 {[%clk 0:00:49.5]} 24... Qf6 {[%clk 0:00:53.6]} 25. c4
{[%clk 0:00:46.4]} 25... Qxd4 {[%clk 0:00:46.2]} 26. Rxd4 {[%clk 0:00:47.3]}
26... Rad8 {[%clk 0:00:47]} 27. cxd5 {[%clk 0:00:45.8]} 27... Rxd5 {[%clk
0:00:47.1]} 28. Bb3 {[%clk 0:00:45.2]} 1-0

[Event "Late-Titled-Tuesday-Blitz-January-16-2024"]
[Site "Chess.com"]
[Date "2024.01.16"]
[Round "4"]
[White "vladislavkovalev"]
[Black "koncheto"]
[Result "1-0"]
[WhiteElo "2840"]
[BlackElo "2584"]
[TimeControl "180+1"]
[EndTime "14:36:30 PST"]
[Termination "vladislavkovalev won by resignation"]

1. e4 {[%clk 0:03:00.9]} 1... c5 {[%clk 0:02:59.6]} 2. Nf3 {[%clk 0:03:01.4]}
2... d6 {[%clk 0:02:59.7]} 3. Bb5+ {[%clk 0:03:01.9]} 3... Nc6 {[%clk
0:02:59.8]} 4. O-O {[%clk 0:03:01.7]} 4... Bd7 {[%clk 0:02:57.3]} 5. Re1 {[%clk
0:03:01.7]} 5... a6 {[%clk 0:02:57.2]} 6. Bxc6 {[%clk 0:03:00.5]} 6... Bxc6
{[%clk 0:02:57.1]} 7. d4 {[%clk 0:03:01.2]} 7... cxd4 {[%clk 0:02:56.7]} 8. Nxd4
{[%clk 0:03:02.1]} 8... Rc8 {[%clk 0:02:47.4]} 9. c4 {[%clk 0:03:02.7]} 9... g6
{[%clk 0:02:47.1]} 10. Nc3 {[%clk 0:02:59.8]} 10... Bg7 {[%clk 0:02:47.2]} 11.
Be3 {[%clk 0:03:00.2]} 11... Nf6 {[%clk 0:02:46.5]} 12. f3 {[%clk 0:02:59]}
12... O-O {[%clk 0:02:44.4]} 13. Qd2 {[%clk 0:02:57]} 13... Nd7 {[%clk
0:02:38.8]} 14. Rad1 {[%clk 0:02:54.4]} 14... Nc5 {[%clk 0:02:35.3]} 15. b3
{[%clk 0:02:52]} 15... Ne6 {[%clk 0:02:29.8]} 16. Nxe6 {[%clk 0:02:51.2]} 16...
fxe6 {[%clk 0:02:29.8]} 17. Bh6 {[%clk 0:02:49.7]} 17... b5 {[%clk 0:02:13]} 18.
Bxg7 {[%clk 0:02:49.7]} 18... Kxg7 {[%clk 0:02:12.9]} 19. cxb5 {[%clk
0:02:35.2]} 19... axb5 {[%clk 0:02:09.8]} 20. Ne2 {[%clk 0:02:18.1]} 20... Qb6+
{[%clk 0:01:57.4]} 21. Kh1 {[%clk 0:02:18.1]} 21... e5 {[%clk 0:01:35.3]} 22.
Qg5 {[%clk 0:02:17.9]} 22... Rf6 {[%clk 0:01:31.4]} 23. Ng3 {[%clk 0:02:18.3]}
23... h6 {[%clk 0:01:10]} 24. Nh5+ {[%clk 0:02:09.9]} 24... Kf7 {[%clk
0:00:48.2]} 25. Qg4 {[%clk 0:02:10]} 25... gxh5 {[%clk 0:00:36]} 26. Qxc8 {[%clk
0:02:10.2]} 26... Rg6 {[%clk 0:00:19.5]} 27. Rd2 {[%clk 0:02:04.5]} 27... Bb7
{[%clk 0:00:13.8]} 28. Qf5+ {[%clk 0:02:04]} 28... Kg7 {[%clk 0:00:14.2]} 29.
Qxh5 {[%clk 0:02:04.3]} 29... Bc8 {[%clk 0:00:13.2]} 30. Qh4 {[%clk 0:02:01.8]}
30... Rf6 {[%clk 0:00:07.9]} 31. Qf2 {[%clk 0:01:58.7]} 31... Qa5 {[%clk
0:00:07.7]} 32. Rc1 {[%clk 0:01:58.3]} 32... Be6 {[%clk 0:00:07.9]} 33. Rdc2
{[%clk 0:01:57.4]} 33... Rg6 {[%clk 0:00:08.1]} 34. Rc7 {[%clk 0:01:55.4]} 34...
Kf7 {[%clk 0:00:07.2]} 35. h3 {[%clk 0:01:39.4]} 35... Qa8 {[%clk 0:00:04.9]}
36. Qa7 {[%clk 0:01:35.1]} 36... Qe8 {[%clk 0:00:04]} 37. Rxe7+ {[%clk
0:01:34.7]} 37... Qxe7 {[%clk 0:00:03.9]} 38. Rc7 {[%clk 0:01:35.5]} 1-0

[Event "Late-Titled-Tuesday-Blitz-January-16-2024"]
[Site "Chess.com"]
[Date "2024.01.16"]
[Round "4"]
[White "Javylavilla"]
[Black "2346PL"]
[Result "1/2-1/2"]
[WhiteElo "2351"]
[BlackElo "2520"]
[TimeControl "180+1"]
[EndTime "14:36:38 PST"]
[Termination "Game drawn by repetition"]

1. e4 {[%clk 0:03:00.9]} 1... c5 {[%clk 0:02:59]} 2. Nf3 {[%clk 0:02:59.9]} 2...
Nf6 {[%clk 0:02:59.6]} 3. Nc3 {[%clk 0:02:57.5]} 3... d5 {[%clk 0:02:59.5]} 4.
exd5 {[%clk 0:02:57]} 4... Nxd5 {[%clk 0:03:00.4]} 5. Bb5+ {[%clk 0:02:47.6]}
5... Nc6 {[%clk 0:03:00]} 6. O-O {[%clk 0:02:45.2]} 6... Nxc3 {[%clk 0:02:58.3]}
7. bxc3 {[%clk 0:02:44.8]} 7... Bd7 {[%clk 0:02:58.1]} 8. d4 {[%clk 0:02:34.9]}
8... e6 {[%clk 0:02:57.1]} 9. Re1 {[%clk 0:02:33.6]} 9... Be7 {[%clk 0:02:55.2]}
10. Bf4 {[%clk 0:02:19.8]} 10... O-O {[%clk 0:02:54.2]} 11. Bd3 {[%clk
0:02:10.2]} 11... cxd4 {[%clk 0:02:51.7]} 12. cxd4 {[%clk 0:02:09.8]} 12... Nb4
{[%clk 0:02:52.1]} 13. Be4 {[%clk 0:02:06.7]} 13... Nd5 {[%clk 0:02:51.5]} 14.
Bg3 {[%clk 0:02:05.7]} 14... Nc3 {[%clk 0:02:49.5]} 15. Qd3 {[%clk 0:02:04]}
15... Nxe4 {[%clk 0:02:49]} 16. Qxe4 {[%clk 0:02:04.9]} 16... Bc6 {[%clk
0:02:49.2]} 17. Qe3 {[%clk 0:02:03]} 17... Qd5 {[%clk 0:02:47.8]} 18. Qb3 {[%clk
0:01:55.5]} 18... Rfd8 {[%clk 0:02:36.2]} 19. c4 {[%clk 0:01:52.2]} 19... Qh5
{[%clk 0:02:32.3]} 20. d5 {[%clk 0:01:49]} 20... exd5 {[%clk 0:02:32.2]} 21.
Rxe7 {[%clk 0:01:47.1]} 21... dxc4 {[%clk 0:02:12.6]} 22. Qxc4 {[%clk
0:01:45.5]} 22... Bxf3 {[%clk 0:02:09.5]} 23. gxf3 {[%clk 0:01:43.7]} 23... Qxf3
{[%clk 0:02:10]} 24. Rae1 {[%clk 0:01:42.1]} 24... h5 {[%clk 0:02:07.3]} 25. h4
{[%clk 0:01:36.2]} 25... Rac8 {[%clk 0:01:57.8]} 26. Qb5 {[%clk 0:01:29]} 26...
b6 {[%clk 0:01:47.7]} 27. Rxa7 {[%clk 0:01:23.1]} 27... Rd1 {[%clk 0:01:45.6]}
28. Re7 {[%clk 0:01:22.6]} 28... Rcc1 {[%clk 0:01:44.9]} 29. Qe8+ {[%clk
0:01:05.5]} 29... Kh7 {[%clk 0:01:44.1]} 30. Re3 {[%clk 0:00:58.7]} 30... Qd5
{[%clk 0:01:32.8]} 31. Re5 {[%clk 0:00:56.3]} 31... Qd2 {[%clk 0:01:18.2]} 32.
Rxh5+ {[%clk 0:00:52.9]} 32... Kg6 {[%clk 0:01:16.5]} 33. Qe4+ {[%clk
0:00:48.2]} 33... Kxh5 {[%clk 0:01:14.3]} 34. Qf5+ {[%clk 0:00:42.2]} 34... g5
{[%clk 0:01:13.1]} 35. Qxf7+ {[%clk 0:00:41.2]} 35... Kg4 {[%clk 0:01:13.2]} 36.
Qe6+ {[%clk 0:00:38.1]} 36... Kh5 {[%clk 0:01:12.3]} 37. Qe8+ {[%clk 0:00:34.2]}
37... Kg4 {[%clk 0:01:09.6]} 38. Qe4+ {[%clk 0:00:34.3]} 38... Kh5 {[%clk
0:01:09.7]} 39. Qh7+ {[%clk 0:00:34.1]} 39... Kg4 {[%clk 0:01:09.9]} 40. Qe4+
{[%clk 0:00:30.9]} 40... Kh5 {[%clk 0:01:10.2]} 41. Qh7+ {[%clk 0:00:30.3]}
41... Kg4 {[%clk 0:01:10.6]} 42. Qe4+ {[%clk 0:00:29.1]} 1/2-1/2

[Event "Late-Titled-Tuesday-Blitz-January-16-2024"]
[Site "Chess.com"]
[Date "2024.01.16"]
[Round "4"]
[White "Cambek64"]
[Black "luis-garcia"]
[Result "1-0"]
[WhiteElo "2443"]
[BlackElo "2126"]
[TimeControl "180+1"]
[EndTime "14:36:39 PST"]
[Termination "Cambek64 won by resignation"]

1. e4 {[%clk 0:02:58.7]} 1... e6 {[%clk 0:01:29.7]} 2. d4 {[%clk 0:02:56.9]}
2... d5 {[%clk 0:01:29.7]} 3. Nd2 {[%clk 0:02:57.5]} 3... dxe4 {[%clk
0:01:28.5]} 4. Nxe4 {[%clk 0:02:58.4]} 4... Bd7 {[%clk 0:01:28.8]} 5. Nf3 {[%clk
0:02:57.2]} 5... Bc6 {[%clk 0:01:29.3]} 6. Bd3 {[%clk 0:02:55.4]} 6... Nd7
{[%clk 0:01:28.2]} 7. O-O {[%clk 0:02:54.1]} 7... Ngf6 {[%clk 0:01:27.7]} 8. Ng3
{[%clk 0:02:54.4]} 8... Bxf3 {[%clk 0:01:27.5]} 9. Qxf3 {[%clk 0:02:53.6]} 9...
c6 {[%clk 0:01:28.4]} 10. Re1 {[%clk 0:02:53.1]} 10... Qa5 {[%clk 0:01:26.8]}
11. c3 {[%clk 0:02:52.9]} 11... Be7 {[%clk 0:01:26.6]} 12. a4 {[%clk 0:02:50.9]}
12... O-O {[%clk 0:01:26]} 13. b4 {[%clk 0:02:50.7]} 13... Qd8 {[%clk
0:01:25.1]} 14. a5 {[%clk 0:02:50.4]} 14... a6 {[%clk 0:01:24.9]} 15. Ne4 {[%clk
0:02:42.8]} 15... Re8 {[%clk 0:01:20.8]} 16. Nc5 {[%clk 0:02:38.4]} 16... Bxc5
{[%clk 0:01:12.7]} 17. bxc5 {[%clk 0:02:37.9]} 17... e5 {[%clk 0:01:13]} 18. Bg5
{[%clk 0:02:35.6]} 18... exd4 {[%clk 0:01:06.3]} 19. cxd4 {[%clk 0:02:31.5]}
19... h6 {[%clk 0:01:06.1]} 20. Bh4 {[%clk 0:02:25.8]} 20... Qc7 {[%clk
0:01:00.3]} 21. Re3 {[%clk 0:02:18.1]} 21... Nd5 {[%clk 0:00:53.7]} 22. Re4
{[%clk 0:02:12.4]} 22... Rxe4 {[%clk 0:00:49.9]} 23. Qxe4 {[%clk 0:02:00.6]}
23... N7f6 {[%clk 0:00:50]} 24. Qf3 {[%clk 0:01:51.1]} 24... Re8 {[%clk
0:00:49.1]} 25. Bg3 {[%clk 0:01:50.3]} 25... Qd7 {[%clk 0:00:42.2]} 26. Be5
{[%clk 0:01:49.9]} 26... Qe7 {[%clk 0:00:32.9]} 27. h3 {[%clk 0:01:47.4]} 27...
Nd7 {[%clk 0:00:32.5]} 28. Bd6 {[%clk 0:01:45.9]} 28... Qf6 {[%clk 0:00:29.3]}
29. Qxf6 {[%clk 0:01:45.9]} 29... N7xf6 {[%clk 0:00:28.8]} 30. Rb1 {[%clk
0:01:46.3]} 30... Nc3 {[%clk 0:00:16.4]} 31. Rxb7 {[%clk 0:01:44]} 31... Re1+
{[%clk 0:00:16.6]} 32. Kh2 {[%clk 0:01:44.1]} 32... g6 {[%clk 0:00:13.4]} 33.
Be5 {[%clk 0:01:39.3]} 33... Ncd5 {[%clk 0:00:13]} 34. Bxa6 {[%clk 0:01:34.1]}
34... Ra1 {[%clk 0:00:12]} 35. Bc4 {[%clk 0:01:34.6]} 35... Rxa5 {[%clk
0:00:10.8]} 36. Bxd5 {[%clk 0:01:34.8]} 1-0

[Event "Late-Titled-Tuesday-Blitz-January-16-2024"]
[Site "Chess.com"]
[Date "2024.01.16"]
[Round "4"]
[White "Rgoltsman"]
[Black "annasargsyan_m"]
[Result "0-1"]
[WhiteElo "2186"]
[BlackElo "2576"]
[TimeControl "180+1"]
[EndTime "14:36:42 PST"]
[Termination "annasargsyan_m won by resignation"]

1. e4 {[%clk 0:02:56.7]} 1... c6 {[%clk 0:02:57.9]} 2. Nf3 {[%clk 0:02:56.1]}
2... d5 {[%clk 0:02:58.8]} 3. Nc3 {[%clk 0:02:56.5]} 3... Bg4 {[%clk 0:02:57.3]}
4. h3 {[%clk 0:02:55.9]} 4... Bxf3 {[%clk 0:02:57.8]} 5. Qxf3 {[%clk 0:02:55.4]}
5... Nf6 {[%clk 0:02:58.4]} 6. d4 {[%clk 0:02:51.2]} 6... dxe4 {[%clk
0:02:55.7]} 7. Nxe4 {[%clk 0:02:52.1]} 7... Nbd7 {[%clk 0:02:54.9]} 8. Bg5
{[%clk 0:02:49.6]} 8... Qa5+ {[%clk 0:02:49.9]} 9. Bd2 {[%clk 0:02:48.3]} 9...
Qb6 {[%clk 0:02:49.6]} 10. O-O-O {[%clk 0:02:47.6]} 10... e6 {[%clk 0:02:45.1]}
11. Bg5 {[%clk 0:02:42.6]} 11... Nxe4 {[%clk 0:02:38.9]} 12. Qxe4 {[%clk
0:02:43.5]} 12... Qa5 {[%clk 0:02:38.2]} 13. h4 {[%clk 0:02:36.1]} 13... Qxa2
{[%clk 0:02:25.4]} 14. Rh3 {[%clk 0:02:28.8]} 14... Qa1+ {[%clk 0:02:15.2]} 15.
Kd2 {[%clk 0:02:28.7]} 15... Qxb2 {[%clk 0:02:10.2]} 16. Rb3 {[%clk 0:02:28.5]}
16... Qa2 {[%clk 0:02:08.1]} 17. Rxb7 {[%clk 0:02:28.1]} 17... Qa5+ {[%clk
0:02:07.1]} 18. Ke3 {[%clk 0:02:21.2]} 18... Rc8 {[%clk 0:01:57.9]} 19. Qf4
{[%clk 0:00:52.9]} 19... f6 {[%clk 0:01:53.2]} 20. Rdb1 {[%clk 0:00:50.3]} 20...
fxg5 {[%clk 0:01:47.2]} 21. hxg5 {[%clk 0:00:51.2]} 21... Qf5 {[%clk 0:01:44.6]}
22. Qg3 {[%clk 0:00:51.6]} 22... Be7 {[%clk 0:01:40.9]} 23. Rxd7 {[%clk
0:00:49.9]} 23... Kxd7 {[%clk 0:01:37.8]} 24. Rb7+ {[%clk 0:00:50]} 24... Ke8
{[%clk 0:01:38.5]} 25. f4 {[%clk 0:00:37.1]} 25... c5 {[%clk 0:01:31.8]} 26. Bd3
{[%clk 0:00:32.9]} 26... cxd4+ {[%clk 0:01:25.3]} 27. Ke2 {[%clk 0:00:33.4]}
27... Qd5 {[%clk 0:01:24.7]} 28. Rxa7 {[%clk 0:00:29]} 28... g6 {[%clk
0:01:09.9]} 29. f5 {[%clk 0:00:21.1]} 29... exf5 {[%clk 0:01:04.9]} 30. Qe1
{[%clk 0:00:11.2]} 30... Qe5+ {[%clk 0:00:58.6]} 0-1

[Event "Late-Titled-Tuesday-Blitz-January-16-2024"]
[Site "Chess.com"]
[Date "2024.01.16"]
[Round "4"]
[White "EsmeraldasAnderson03"]
[Black "Lion-Al-Messi"]
[Result "0-1"]
[WhiteElo "2394"]
[BlackElo "2603"]
[TimeControl "180+1"]
[EndTime "14:36:46 PST"]
[Termination "Lion-Al-Messi won by resignation"]

1. d4 {[%clk 0:03:00.9]} 1... d5 {[%clk 0:02:59.9]} 2. c4 {[%clk 0:02:58.9]}
2... c6 {[%clk 0:03:00]} 3. Nc3 {[%clk 0:02:58.4]} 3... Nf6 {[%clk 0:03:00.2]}
4. cxd5 {[%clk 0:02:55.3]} 4... cxd5 {[%clk 0:02:59.8]} 5. Bf4 {[%clk
0:02:55.6]} 5... Nc6 {[%clk 0:02:59.9]} 6. e3 {[%clk 0:02:56]} 6... Bg4 {[%clk
0:03:00]} 7. Nf3 {[%clk 0:02:53.4]} 7... e6 {[%clk 0:02:59.1]} 8. Bd3 {[%clk
0:02:52]} 8... Be7 {[%clk 0:02:47.9]} 9. h3 {[%clk 0:02:50]} 9... Bh5 {[%clk
0:02:45.8]} 10. O-O {[%clk 0:02:50.1]} 10... O-O {[%clk 0:02:45]} 11. Rc1 {[%clk
0:02:49.4]} 11... Rc8 {[%clk 0:02:44.3]} 12. Ne2 {[%clk 0:02:17.8]} 12... Bxf3
{[%clk 0:02:43.3]} 13. gxf3 {[%clk 0:02:17.4]} 13... Bd6 {[%clk 0:02:43.1]} 14.
Bxd6 {[%clk 0:02:16.7]} 14... Qxd6 {[%clk 0:02:43]} 15. Kh1 {[%clk 0:02:08]}
15... e5 {[%clk 0:02:42.4]} 16. dxe5 {[%clk 0:02:04.4]} 16... Nxe5 {[%clk
0:02:43.3]} 17. Rxc8 {[%clk 0:02:00.4]} 17... Rxc8 {[%clk 0:02:42.5]} 18. Nd4
{[%clk 0:01:58.6]} 18... g6 {[%clk 0:02:40.8]} 19. f4 {[%clk 0:01:55.1]} 19...
Nxd3 {[%clk 0:02:38.9]} 20. Qxd3 {[%clk 0:01:53.8]} 20... Ne4 {[%clk 0:02:36.6]}
21. Kg2 {[%clk 0:01:49.2]} 21... Qf6 {[%clk 0:02:32.5]} 22. f3 {[%clk
0:01:36.1]} 22... Nc5 {[%clk 0:02:31.1]} 23. Qd2 {[%clk 0:01:11]} 23... Ne6
{[%clk 0:02:29.5]} 24. Ne2 {[%clk 0:01:07.8]} 24... d4 {[%clk 0:02:26.8]} 25.
Nxd4 {[%clk 0:01:00.6]} 25... Nxd4 {[%clk 0:02:26.6]} 26. Qxd4 {[%clk
0:00:54.4]} 26... Qxd4 {[%clk 0:02:26.2]} 27. exd4 {[%clk 0:00:54.4]} 27... Rc4
{[%clk 0:02:26.8]} 28. Kf2 {[%clk 0:00:26.1]} 28... Rc2+ {[%clk 0:02:24]} 29.
Ke3 {[%clk 0:00:26.6]} 29... Rxb2 {[%clk 0:02:24.9]} 30. Rc1 {[%clk 0:00:24.3]}
30... Rxa2 {[%clk 0:02:22.8]} 31. Rc8+ {[%clk 0:00:24.9]} 31... Kg7 {[%clk
0:02:23]} 32. d5 {[%clk 0:00:25.6]} 32... Kf6 {[%clk 0:02:20.3]} 33. Rc7 {[%clk
0:00:20.6]} 33... Ra3+ {[%clk 0:02:19]} 34. Ke4 {[%clk 0:00:20.2]} 34... Ra4+
{[%clk 0:02:19.3]} 35. Ke3 {[%clk 0:00:20.9]} 35... Rb4 {[%clk 0:02:12.3]} 36.
h4 {[%clk 0:00:14.3]} 36... Rb6 {[%clk 0:02:10.8]} 37. Ke4 {[%clk 0:00:12.7]}
37... a5 {[%clk 0:02:10.2]} 38. Rc5 {[%clk 0:00:06.9]} 38... Ra6 {[%clk
0:02:07.5]} 39. Rb5 {[%clk 0:00:07.4]} 39... a4 {[%clk 0:02:04.8]} 40. Rxb7
{[%clk 0:00:06.5]} 40... a3 {[%clk 0:02:05.3]} 41. Rb1 {[%clk 0:00:07.1]} 41...
a2 {[%clk 0:02:05.8]} 42. Ra1 {[%clk 0:00:08]} 42... Ke7 {[%clk 0:02:05.6]} 43.
Ke5 {[%clk 0:00:07.1]} 43... f6+ {[%clk 0:02:05.5]} 44. Kd4 {[%clk 0:00:07.1]}
44... Kd6 {[%clk 0:02:05.9]} 45. Kc4 {[%clk 0:00:07.8]} 45... h5 {[%clk
0:02:02.6]} 46. Kb5 {[%clk 0:00:07.3]} 46... Ra8 {[%clk 0:02:02.2]} 47. Kc4
{[%clk 0:00:07.6]} 47... f5 {[%clk 0:02:02.4]} 48. Kd4 {[%clk 0:00:05]} 48...
Ra4+ {[%clk 0:02:02.1]} 49. Kc3 {[%clk 0:00:04.1]} 49... Kxd5 {[%clk 0:02:02.3]}
50. Kb3 {[%clk 0:00:04.9]} 50... Ra8 {[%clk 0:01:59.6]} 51. Kc3 {[%clk
0:00:05.3]} 51... Kc5 {[%clk 0:01:59.1]} 52. Kd3 {[%clk 0:00:04.9]} 52... Kb4
{[%clk 0:01:59.4]} 53. Kc2 {[%clk 0:00:05.4]} 53... Kc4 {[%clk 0:01:59.4]} 54.
Kd2 {[%clk 0:00:04.6]} 54... Kb3 {[%clk 0:01:58.8]} 0-1